fUSD/lending_fUSD_20240205
["ID","MTS","AMOUNT","RATE_DAILY","PERIOD"]
[313301915,1707126644013,-1847.21135699,0.00043805,2]
[313301916,1707126644035,-298.00376596,0.00043805,2]
[313301917,1707126644049,-692.02618602,0.00043805,2]
[313301918,1707126644070,-5149.04347559,0.00043805,2]
[313301919,1707126644086,-11891.74675346,0.00043805,2]
[313301920,1707126644101,-379.56645717,0.00043805,2]
[313301921,1707126644116,-10428.78306781,0.00043805,2]
[313301922,1707126644128,-151.0,0.00043814,14]
[313301923,1707126644139,-23754.84349074,0.00043815,10]
[313301947,1707126645649,-198.94,0.000347,2]
[313301949,1707126645661,-8294.80201078,0.00043815,10]
[313301951,1707126645676,-4850.0000002,0.00043815,10]
[313301956,1707126645708,-421.605628,0.00043815,10]
[313301981,1707126645934,-258.24345965,0.00043815,10]
[313302087,1707126851569,958.12,0.0002,2]
[313302123,1707127831775,-178.49045559,0.0002272,2]
[313302124,1707127831785,-155.0,0.00022721,2]
[313302125,1707127831794,-2154.11089762,0.00022722,2]
[313302126,1707127831803,-497.18487823,0.00022723,2]
[313302127,1707127831811,-150.0,0.00022769,2]
[313302129,1707127831821,-164.48264392,0.000228,2]
[313302130,1707127831830,-896.05770181,0.00022898,2]
[313302131,1707127831840,-99.96282283,0.00022898,2]
[313302132,1707127831864,-945.55571987,0.00022898,2]
[313302133,1707127831873,-36062.87,0.000229,2]
[313302134,1707127831882,-52013.49,0.000229,2]
[313302135,1707127831891,-52013.49,0.000229,2]
[313302136,1707127831900,-15136.92,0.000229,2]
[313302137,1707127831910,-153.57037587,0.000229,2]
[313302138,1707127831919,-26123.82023778,0.000229,2]
[313302139,1707127831930,-2393.0359926,0.000229,2]
[313302141,1707127832112,-359.237999,0.000229,2]
[313302142,1707127832124,-834.26875927,0.000229,2]
[313302143,1707127832136,-563.48701135,0.000229,2]
[313302145,1707127832146,-3103.81898865,0.000229,2]
[313302147,1707127832162,-319.24149127,0.000229,2]
[313302148,1707127832173,-357.46371413,0.000229,2]
[313302149,1707127832187,-1916.98708128,0.000229,2]
[313302150,1707127832202,-373.90204875,0.000229,2]
[313302151,1707127832214,-358.52677477,0.000229,2]
[313302159,1707127837777,-1000.00663,0.000229,2]
[313302160,1707127837789,-395.84587954,0.000229,2]
[313302161,1707127837800,-296.43501175,0.000229,2]
[313302162,1707127837836,-464.205,0.000229,2]
[313302163,1707127837847,-4245.84616659,0.000229,2]
[313302164,1707127837899,-306.979227,0.000229,2]
[313302165,1707127837911,-1997.66198627,0.000229,2]
[313302166,1707127837920,-512.95262737,0.000229,2]
[313302167,1707127837930,-172.83646161,0.00022996,2]
[313302168,1707127837939,-829.81914014,0.00022997,2]
[313302169,1707127837948,-2686.70430794,0.00022997,2]
[313302170,1707127837957,-8064.87710581,0.00022997,2]
[313302171,1707127837974,-1069.5,0.00022997,2]
[313302172,1707127837985,-2356.8835157,0.00022997,2]
[313302173,1707127838076,-12903.7190425,0.00022997,2]
[313302174,1707127838086,-803.32188729,0.00022997,2]
[313302175,1707127838095,-774.45873843,0.00022998,2]
[313302176,1707127838105,-1013.26547405,0.00022998,2]
[313302177,1707127838114,-164.96152334,0.00022998,2]
[313302178,1707127838123,-1439.13827967,0.00022998,2]
[313302179,1707127838133,-205.75527007,0.00022998,2]
[313302180,1707127838142,-354.87715265,0.00022998,2]
[313302181,1707127838152,-318.77640834,0.00022998,2]
[313302182,1707127838160,-4655.74947603,0.00022998,2]
[313302183,1707127838170,-9444.6888029,0.00022998,2]
[313302184,1707127838183,-946.60101861,0.00022998,2]
[313302185,1707127838192,-43051.73254667,0.00022998,2]
[313302186,1707127838201,-257.0325133,0.00022998,2]
[313302187,1707127838210,-711.39171269,0.00022998,2]
[313302188,1707127838220,-1153.26741499,0.00022998,2]
[313302189,1707127838229,-3160.98074311,0.00022998,2]
[313302190,1707127838238,-931.69170354,0.00022999,2]
[313302191,1707127838247,-23785.4773507,0.00022999,2]
[313302192,1707127838257,-563315.1090385,0.00023,2]
[313302193,1707127838266,-429236.93230224,0.00023,2]
[313302194,1707127838275,-152.08406195,0.0002375,2]
[313302195,1707127838284,-189.17,0.000242,2]
[313302196,1707127838293,-169.15754292,0.000257,2]
[313302197,1707127838302,-164.60010223,0.000258,2]
[313302198,1707127838310,-155.0,0.00026,2]
[313302199,1707127838319,-159.1,0.00026118,2]
[313302200,1707127838328,-250.0,0.00026279,2]
[313302201,1707127838337,-189.17,0.00026464,2]
[313302202,1707127838347,-1045.51854264,0.00026513,3]
[313302203,1707127838356,-300.0,0.00027,2]
[313302204,1707127838366,-1000.0,0.00027165,2]
[313302205,1707127838375,-150.0,0.00027289,2]
[313302206,1707127838384,-152.08406194,0.00027771,2]
[313302207,1707127838392,-369.0,0.00028215,2]
[313302208,1707127838402,-189.17,0.00028728,2]
[313302209,1707127838411,-453.0,0.00029485,2]
[313302210,1707127838420,-155.0,0.0003,2]
[313302211,1707127838428,-1045.51854264,0.00030127,4]
[313302212,1707127838437,-1000.0,0.0003056,2]
[313302213,1707127838447,-558.0,0.00030811,2]
[313302214,1707127838456,-189.17,0.00030992,2]
[313302215,1707127838465,-169.1575429,0.00031558,3]
[313302216,1707127838474,-180.0,0.00031644,2]
[313302217,1707127838483,-152.08406194,0.00031793,2]
[313302218,1707127838492,-424.20212651,0.00031799,7]
[313302219,1707127838501,-160059.359936,0.000318,2]
[313302220,1707127838510,-686.0,0.00032198,3]
[313302221,1707127838519,-189.17,0.00033256,2]
[313302222,1707127838528,-844.0,0.00033647,3]
[313302223,1707127838538,-1045.51854264,0.00033742,6]
[313302224,1707127838547,-1000.0,0.00033956,2]
[313302225,1707127838556,-1758.19707499,0.00034742,10]
[313302226,1707127838565,-2026.22361131,0.00034742,10]
[313302227,1707127838574,-1981.92292331,0.00034742,10]
[313302228,1707127838583,-289.39095149,0.00034742,10]
[313302229,1707127838592,-1038.0,0.00035161,3]
[313302230,1707127838601,-2479.0,0.000352,3]
[313302231,1707127838610,-17977.0,0.000352,3]
[313302232,1707127838619,-189.17,0.0003552,2]
[313302233,1707127838628,-159.26,0.00035616,2]
[313302234,1707127838637,-318.52,0.00035616,7]
[313302235,1707127838645,-477.78,0.00035616,12]
[313302236,1707127838654,-637.04,0.00035616,17]
[313302237,1707127838664,-796.3,0.00035616,22]
[313302238,1707127838673,-152.08406194,0.00035814,2]
[313302239,1707127838682,-368.0,0.00036145,5]
[313302240,1707127838691,-1277.0,0.00036743,3]
[313302241,1707127838700,-166.14041328,0.00037325,7]
[313302242,1707127838709,-1000.0,0.00037351,2]
[313302243,1707127838718,-1045.51854264,0.00037356,8]
[313302244,1707127838726,-169.1575429,0.00037415,10]
[313302245,1707127838736,-1091.5840578,0.0003755,2]
[313302246,1707127838746,-811.81883219,0.0003778,2]
[313302247,1707127838755,-189.17,0.00037784,2]
[313302248,1707127838764,-902.62274662,0.00037857,2]
[313302249,1707127838773,-489.46953696,0.00037857,2]
[313302250,1707127838782,-1629.35499544,0.00037857,2]
[313302251,1707127838791,-1068.6066285,0.00037857,2]
[313302252,1707127838800,-252.38070885,0.00037857,2]
[313302253,1707127838809,-1283.01876304,0.00037857,2]
[313302254,1707127838818,-13506.18402711,0.0003788,2]
[313302255,1707127838826,-955.56,0.00037899,27]
[313302256,1707127838835,-1114.82,0.00037899,32]
[313302257,1707127838844,-1274.08,0.00037899,37]
[313302258,1707127838852,-125310.01674363,0.000379,3]
[313302259,1707127838861,-626851.478622,0.000379,2]
[313302260,1707127838870,-151.98418248,0.00037957,7]
[313302261,1707127838879,-164.48264391,0.00038256,2]
[313302262,1707127838888,-152.3,0.00038356,2]
[313302263,1707127838897,-1571.0,0.00038397,5]
[313302264,1707127838907,-168.8335665,0.00038492,7]
[313302265,1707127838916,-842.0,0.00038538,2]
[313302266,1707127838925,-954.609,0.00038538,2]
[313302267,1707127838934,-2285.959,0.00038538,2]
[313302268,1707127838943,-1233.0,0.00038538,2]
[313302269,1707127838952,-258.168,0.00038538,2]
[313302270,1707127838962,-152.654,0.00038538,2]
[313302271,1707127838972,-321.727,0.00038538,2]
[313302272,1707127838981,-849.0,0.00038538,2]
[313302273,1707127838992,-4227.015,0.00038538,2]
[313302274,1707127839001,-247.474,0.00038538,2]
[313302275,1707127839010,-432.121,0.00038538,2]
[313302276,1707127839019,-1049.542,0.00038538,2]
[313302277,1707127839028,-168.8335665,0.00038747,7]
[313302278,1707127839037,-166.14041328,0.00038948,7]
[313302279,1707127839046,-151.98418248,0.00039031,7]
[313302280,1707127839056,-168.8335665,0.00039481,7]
[313302281,1707127839065,-1004.0,0.000397,4]
[313302282,1707127839074,-152.08406194,0.00039836,6]
[313302283,1707127839083,-2181.26326212,0.0004,5]
[313302284,1707127839092,-189.17,0.00040048,2]
[313302285,1707127839101,-168.8335665,0.00040117,30]
[313302286,1707127839111,-320.0,0.00040125,5]
[313302287,1707127839120,-166.14041328,0.00040254,30]
[313302288,1707127839130,-1000.0,0.000403,2]
[313302289,1707127839139,-849.67960663,0.00040362,30]
[313302290,1707127839148,-500.0,0.00040362,3]
[313302291,1707127839157,-250.0,0.0004044,3]
[313302292,1707127839167,-1000.0,0.00040747,2]
[313302293,1707127839178,-1045.51854264,0.00040971,10]
[313302294,1707127839186,-153.57037586,0.00040995,2]
[313302295,1707127839195,-374.88675102,0.00041094,31]
[313302296,1707127839204,-500.0,0.00041094,31]
[313302297,1707127839214,-160.66575043,0.00041094,31]
[313302298,1707127839223,-272.86964608,0.00041094,31]
[313302299,1707127839233,-350.0,0.00041094,31]
[313302300,1707127839243,-500.0,0.00041095,2]
[313302301,1707127839252,-624.4531132,0.00041095,2]
[313302302,1707127839262,-500.0,0.00041095,2]
[313302303,1707127839273,-500.0,0.00041095,2]
[313302304,1707127839282,-539.0108262,0.00041095,2]
[313302305,1707127839291,-500.0,0.00041095,2]
[313302306,1707127839301,-225.76967257,0.00041095,2]
[313302307,1707127839309,-622.91701201,0.00041095,2]
[313302308,1707127839318,-500.0,0.00041095,2]
[313302309,1707127839328,-500.0,0.00041095,2]
[313302310,1707127839337,-500.0,0.00041095,2]
[313302311,1707127839346,-500.0,0.00041095,2]
[313302312,1707127839356,-500.0,0.00041095,2]
[313302313,1707127839365,-500.0,0.00041095,2]
[313302314,1707127839374,-500.0,0.00041095,2]
[313302315,1707127839383,-615.71542857,0.00041095,2]
[313302316,1707127839392,-500.0,0.00041095,2]
[313302317,1707127839401,-500.0,0.00041095,2]
[313302318,1707127839410,-579.4845952,0.00041095,2]
[313302319,1707127839419,-500.0,0.00041095,2]
[313302320,1707127839428,-584.88860376,0.00041095,2]
[313302321,1707127839436,-500.0,0.00041095,2]
[313302322,1707127839446,-513.87,0.00041095,2]
[313302323,1707127839455,-626.93382641,0.00041095,2]
[313302324,1707127839464,-500.0,0.00041095,2]
[313302325,1707127839473,-500.0,0.00041095,2]
[313302326,1707127839482,-500.0,0.00041095,2]
[313302327,1707127839491,-625.80196264,0.00041095,2]
[313302328,1707127839500,-500.0,0.00041095,2]
[313302329,1707127839509,-500.0,0.00041095,2]
[313302330,1707127839518,-584.93281713,0.00041095,2]
[313302331,1707127839527,-500.0,0.00041095,2]
[313302332,1707127839536,-500.0,0.00041095,2]
[313302333,1707127839546,-527.85772188,0.00041095,2]
[313302334,1707127839556,-500.0,0.00041095,2]
[313302335,1707127839566,-500.0,0.00041095,2]
[313302336,1707127839575,-564.62562011,0.00041095,2]
[313302337,1707127839584,-612.12640315,0.00041095,2]
[313302338,1707127839594,-500.0,0.00041095,2]
[313302339,1707127839603,-600.32555723,0.00041095,2]
[313302340,1707127839717,-500.0,0.00041095,2]
[313302341,1707127839727,-503.66362911,0.00041095,2]
[313302342,1707127839737,-500.0,0.00041095,2]
[313302343,1707127839749,-522.98634917,0.00041095,2]
[313302344,1707127839758,-500.0,0.00041095,2]
[313302345,1707127839767,-563.81360282,0.00041095,2]
[313302346,1707127839776,-500.0,0.00041095,2]
[313302347,1707127839785,-500.0,0.00041095,2]
[313302348,1707127839795,-500.0,0.00041095,2]
[313302349,1707127839804,-500.0,0.00041095,2]
[313302350,1707127839813,-500.0,0.00041095,2]
[313302351,1707127839822,-567.06041682,0.00041095,2]
[313302352,1707127839831,-500.0,0.00041095,2]
[313302353,1707127839840,-565.65252412,0.00041095,2]
[313302354,1707127839849,-500.0,0.00041095,2]
[313302355,1707127839857,-500.0,0.00041095,2]
[313302356,1707127839866,-500.0,0.00041095,2]
[313302357,1707127839875,-500.0,0.00041095,2]
[313302358,1707127839884,-500.0,0.00041095,2]
[313302359,1707127839893,-503.33971977,0.00041095,2]
[313302360,1707127839902,-500.0,0.00041095,2]
[313302361,1707127839911,-574.64721268,0.00041095,2]
[313302362,1707127839920,-500.0,0.00041095,2]
[313302363,1707127839929,-187.5716188,0.00041095,2]
[313302364,1707127839938,-166.76681739,0.00041095,2]
[313302365,1707127839947,-500.0,0.00041095,2]
[313302366,1707127839957,-500.0,0.00041095,2]
[313302367,1707127839966,-500.0,0.00041095,30]
[313302368,1707127839975,-500.0,0.00041095,2]
[313302369,1707127839984,-500.0,0.00041095,2]
[313302370,1707127839994,-500.0,0.00041095,2]
[313302371,1707127840004,-563.80723886,0.00041095,2]
[313302372,1707127840014,-500.0,0.00041095,2]
[313302373,1707127840024,-500.0,0.00041095,2]
[313302374,1707127840033,-500.01011983,0.00041095,2]
[313302375,1707127840043,-500.0,0.00041095,2]
[313302376,1707127840053,-500.0,0.00041095,2]
[313302377,1707127840063,-500.0,0.00041095,2]
[313302378,1707127840072,-512.9068837,0.00041095,2]
[313302379,1707127840081,-532.08629323,0.00041095,2]
[313302380,1707127840090,-500.0,0.00041095,2]
[313302381,1707127840100,-500.0,0.00041095,2]
[313302382,1707127840109,-645.67730869,0.00041095,2]
[313302383,1707127840119,-511.50972139,0.00041095,2]
[313302384,1707127840129,-163.21392733,0.00041095,2]
[313302385,1707127840139,-633.76263655,0.00041095,2]
[313302386,1707127840149,-500.0,0.00041095,2]
[313302387,1707127840159,-500.0,0.00041095,2]
[313302388,1707127840169,-156.2009534,0.00041095,2]
[313302390,1707127840181,-500.0,0.00041095,2]
[313302391,1707127840190,-541.04805193,0.00041095,2]
[313302392,1707127840199,-539.50951177,0.00041095,2]
[313302393,1707127840209,-500.0,0.00041095,2]
[313302394,1707127840219,-500.0,0.00041095,2]
[313302395,1707127840228,-500.0,0.00041095,2]
[313302397,1707127840237,-500.0,0.00041095,2]
[313302398,1707127840248,-542.77233357,0.00041095,2]
[313302399,1707127840259,-546.14987642,0.00041095,2]
[313302400,1707127840269,-500.0,0.00041095,2]
[313302401,1707127840278,-500.0,0.00041095,2]
[313302402,1707127840288,-487.4836864,0.00041095,2]
[313302403,1707127840298,-693.27,0.00041095,7]
[313302404,1707127840307,-648.51252404,0.00041095,2]
[313302405,1707127840316,-500.0,0.00041095,2]
[313302406,1707127840326,-500.0,0.00041095,2]
[313302407,1707127840335,-533.49588461,0.00041095,2]
[313302408,1707127840345,-500.0,0.00041095,2]
[313302409,1707127840355,-500.0,0.00041095,2]
[313302410,1707127840364,-580.32983073,0.00041095,2]
[313302411,1707127840374,-542.84993885,0.00041095,2]
[313302412,1707127840384,-500.0,0.00041095,2]
[313302413,1707127840393,-500.0,0.00041095,2]
[313302414,1707127840403,-500.0,0.00041095,2]
[313302415,1707127840413,-500.0,0.00041095,2]
[313302416,1707127840422,-218.00500474,0.00041095,2]
[313302417,1707127840432,-475.74984831,0.00041095,2]
[313302418,1707127840442,-500.0,0.00041095,2]
[313302419,1707127840452,-500.0,0.00041095,2]
[313302420,1707127840461,-500.0,0.00041095,2]
[313302421,1707127840471,-500.0,0.00041095,2]
[313302422,1707127840481,-587.53291283,0.00041095,2]
[313302423,1707127840492,-500.0,0.00041095,2]
[313302424,1707127840501,-165.48371353,0.00041095,2]
[313302425,1707127840510,-500.0,0.00041095,2]
[313302426,1707127840520,-500.0,0.00041095,2]
[313302427,1707127840530,-500.0,0.00041095,2]
[313302428,1707127840539,-500.0,0.00041095,2]
[313302429,1707127840549,-500.0,0.00041095,2]
[313302430,1707127840559,-500.0,0.00041095,2]
[313302431,1707127840568,-500.0,0.00041095,2]
[313302432,1707127840577,-500.0,0.00041095,2]
[313302433,1707127840587,-500.0,0.00041095,2]
[313302434,1707127840596,-500.0,0.00041095,2]
[313302435,1707127840605,-500.0,0.00041095,2]
[313302436,1707127840614,-500.0,0.00041095,2]
[313302437,1707127840624,-500.0,0.00041095,2]
[313302438,1707127840633,-500.0068563,0.00041095,2]
[313302439,1707127840642,-500.0,0.00041095,2]
[313302440,1707127840651,-500.0,0.00041095,2]
[313302441,1707127840660,-500.0,0.00041095,2]
[313302442,1707127840670,-500.0,0.00041095,2]
[313302443,1707127840680,-597.42316864,0.00041095,2]
[313302444,1707127840690,-500.0,0.00041095,2]
[313302445,1707127840700,-500.0,0.00041095,2]
[313302446,1707127840709,-500.0,0.00041095,2]
[313302447,1707127840718,-500.0,0.00041095,2]
[313302448,1707127840728,-500.0,0.00041095,2]
[313302449,1707127840737,-590.00516274,0.00041095,2]
[313302450,1707127840748,-189.39327472,0.00041095,2]
[313302451,1707127840757,-500.0,0.00041095,2]
[313302452,1707127840767,-500.0,0.00041095,2]
[313302453,1707127840777,-585.37012725,0.00041095,2]
[313302454,1707127840786,-500.0,0.00041095,2]
[313302455,1707127840796,-597.46095101,0.00041095,120]
[313302456,1707127840805,-500.0,0.00041095,2]
[313302457,1707127840815,-10000.0,0.00041095,3]
[313302458,1707127840825,-596.62603217,0.00041095,2]
[313302459,1707127840834,-500.0,0.00041095,2]
[313302460,1707127840844,-500.0,0.00041095,2]
[313302461,1707127840853,-500.0,0.00041095,2]
[313302462,1707127840863,-500.0,0.00041095,2]
[313302463,1707127840873,-581.60914789,0.00041095,2]
[313302464,1707127840882,-500.0,0.00041095,2]
[313302465,1707127840891,-500.0,0.00041095,2]
[313302466,1707127840902,-500.0,0.00041095,2]
[313302467,1707127840911,-500.0,0.00041095,2]
[313302468,1707127840921,-528.89562843,0.00041095,2]
[313302469,1707127840931,-500.0,0.00041095,2]
[313302470,1707127840941,-500.0,0.00041095,2]
[313302471,1707127840951,-500.0,0.00041095,2]
[313302472,1707127840961,-500.0,0.00041095,2]
[313302473,1707127840971,-500.0,0.00041095,2]
[313302474,1707127840980,-500.0,0.00041095,20]
[313302475,1707127840989,-500.0,0.00041095,2]
[313302476,1707127840999,-577.9786221,0.00041095,2]
[313302477,1707127841007,-500.0,0.00041095,2]
[313302478,1707127841017,-592.81692053,0.00041095,2]
[313302479,1707127841026,-593.38813217,0.00041095,2]
[313302480,1707127841035,-631.96447393,0.00041095,2]
[313302481,1707127841044,-500.0,0.00041095,2]
[313302482,1707127841054,-529.47968167,0.00041095,2]
[313302483,1707127841064,-500.0,0.00041095,2]
[313302484,1707127841074,-500.0,0.00041095,2]
[313302485,1707127841083,-500.0,0.00041095,2]
[313302486,1707127841093,-638.70162521,0.00041095,2]
[313302487,1707127841102,-566.64353294,0.00041095,2]
[313302488,1707127841111,-500.0,0.00041095,2]
[313302489,1707127841121,-500.0,0.00041095,2]
[313302490,1707127841131,-500.0,0.00041095,2]
[313302491,1707127841140,-500.0,0.00041095,2]
[313302492,1707127841150,-500.0,0.00041095,2]
[313302493,1707127841159,-500.0,0.00041095,2]
[313302494,1707127841169,-500.0,0.00041095,2]
[313302495,1707127841181,-553.3784994,0.00041095,2]
[313302496,1707127841191,-500.0,0.00041095,2]
[313302497,1707127841200,-500.0,0.00041095,2]
[313302498,1707127841210,-255.22519475,0.00041095,2]
[313302499,1707127841220,-500.0,0.00041095,2]
[313302500,1707127841231,-500.0,0.00041095,2]
[313302501,1707127841241,-500.0,0.00041095,2]
[313302502,1707127841251,-595.08609467,0.00041095,2]
[313302503,1707127841263,-500.0,0.00041095,2]
[313302504,1707127841273,-500.0,0.00041095,2]
[313302505,1707127841283,-500.0,0.00041095,2]
[313302506,1707127841293,-500.0,0.00041095,2]
[313302507,1707127841302,-506.88322561,0.00041095,2]
[313302508,1707127841312,-500.0,0.00041095,2]
[313302509,1707127841321,-500.0,0.00041095,2]
[313302510,1707127841331,-508.14774365,0.00041095,2]
[313302511,1707127841341,-500.0,0.00041095,2]
[313302512,1707127841353,-252.07651828,0.00041095,2]
[313302513,1707127841362,-150.0,0.00041095,2]
[313302514,1707127841372,-527.46415481,0.00041095,2]
[313302515,1707127841394,-539.54913957,0.00041095,2]
[313302516,1707127841404,-500.0,0.00041095,2]
[313302518,1707127841413,-500.0,0.00041095,2]
[313302520,1707127841423,-500.0,0.00041095,2]
[313302523,1707127841433,-500.0,0.00041095,2]
[313302525,1707127841443,-500.0,0.00041095,2]
[313302527,1707127841453,-500.0,0.00041095,2]
[313302529,1707127841462,-500.0,0.00041095,2]
[313302531,1707127841472,-500.0,0.00041095,2]
[313302547,1707127841481,-622.28764875,0.00041095,2]
[313302549,1707127841634,-500.0,0.00041095,2]
[313302551,1707127841644,-500.0,0.00041095,2]
[313302553,1707127841653,-500.0,0.00041095,2]
[313302555,1707127841662,-606.96719164,0.00041095,2]
[313302557,1707127841671,-500.0,0.00041095,2]
[313302559,1707127841680,-407.19278468,0.00041095,2]
[313302561,1707127841689,-500.0,0.00041095,2]
[313302563,1707127841699,-250.0,0.00041095,2]
[313302565,1707127841708,-500.0,0.00041095,2]
[313302567,1707127841717,-275.44489135,0.00041095,2]
[313302569,1707127841726,-500.0,0.00041095,2]
[313302571,1707127841735,-500.0,0.00041095,2]
[313302573,1707127841746,-565.87877271,0.00041095,2]
[313302575,1707127841756,-500.0,0.00041095,2]
[313302577,1707127841765,-500.0,0.00041095,2]
[313302579,1707127841774,-500.0,0.00041095,2]
[313302581,1707127841784,-500.0,0.00041095,2]
[313302583,1707127841794,-500.0,0.00041095,2]
[313302585,1707127841802,-500.0,0.00041095,2]
[313302587,1707127841812,-572.2790318,0.00041095,2]
[313302589,1707127841823,-500.0,0.00041095,2]
[313302591,1707127841833,-500.0,0.00041095,2]
[313302593,1707127841846,-500.0,0.00041095,2]
[313302596,1707127841856,-598.0125935,0.00041095,2]
[313302598,1707127841865,-638.08595231,0.00041095,2]
[313302600,1707127841875,-500.0,0.00041095,2]
[313302601,1707127841885,-500.0,0.00041095,2]
[313302603,1707127841894,-544.93805681,0.00041095,2]
[313302605,1707127841904,-537.73348721,0.00041095,2]
[313302608,1707127841914,-500.0,0.00041095,2]
[313302609,1707127841924,-316.81224562,0.00041095,2]
[313302612,1707127841934,-500.0,0.00041095,2]
[313302614,1707127841944,-295.16128014,0.00041095,2]
[313302615,1707127841954,-500.0,0.00041095,2]
[313302617,1707127841963,-500.0,0.00041095,2]
[313302619,1707127841973,-638.89675224,0.00041095,2]
[313302621,1707127841983,-500.0,0.00041095,2]
[313302623,1707127841992,-500.0,0.00041095,2]
[313302626,1707127842002,-500.0,0.00041095,2]
[313302628,1707127842011,-307.38967333,0.00041095,2]
[313302630,1707127842021,-500.0,0.00041095,2]
[313302632,1707127842031,-500.0,0.00041095,2]
[313302634,1707127842042,-500.0,0.00041095,2]
[313302636,1707127842051,-623.25293959,0.00041095,2]
[313302638,1707127842061,-500.0,0.00041095,2]
[313302639,1707127842070,-500.0,0.00041095,2]
[313302640,1707127842079,-577.36485731,0.00041095,2]
[313302641,1707127842089,-500.0,0.00041095,2]
[313302642,1707127842099,-500.0,0.00041095,2]
[313302643,1707127842109,-500.0,0.00041095,2]
[313302644,1707127842119,-648.04464957,0.00041095,2]
[313302645,1707127842129,-500.0,0.00041095,2]
[313302646,1707127842138,-236.39493764,0.00041095,2]
[313302647,1707127842148,-500.0,0.00041095,2]
[313302648,1707127842157,-500.0,0.00041095,2]
[313302649,1707127842168,-500.0,0.00041095,2]
[313302650,1707127842183,-500.0,0.00041095,2]
[313302651,1707127842193,-500.0,0.00041095,2]
[313302652,1707127842203,-500.0,0.00041095,2]
[313302653,1707127842214,-500.0,0.00041095,2]
[313302654,1707127842223,-464.63892524,0.00041095,2]
[313302655,1707127842233,-500.0,0.00041095,2]
[313302656,1707127842243,-500.0,0.00041095,2]
[313302657,1707127842254,-500.0,0.00041095,2]
[313302658,1707127842265,-576.11766239,0.00041095,2]
[313302659,1707127842275,-500.0,0.00041095,2]
[313302660,1707127842285,-500.0,0.00041095,2]
[313302661,1707127842295,-500.0,0.00041095,2]
[313302662,1707127842305,-500.0,0.00041095,2]
[313302663,1707127842314,-614.48895158,0.00041095,2]
[313302664,1707127842324,-500.0,0.00041095,2]
[313302665,1707127842334,-500.0,0.00041095,2]
[313302666,1707127842345,-500.0,0.00041095,2]
[313302667,1707127842355,-1000.0,0.00041095,30]
[313302668,1707127842365,-2042.64590681,0.00041095,30]
[313302669,1707127842375,-500.0,0.00041095,2]
[313302670,1707127842385,-546.32715865,0.00041095,2]
[313302671,1707127842394,-500.0,0.00041095,2]
[313302672,1707127842404,-500.0,0.00041095,2]
[313302673,1707127842413,-500.0,0.00041095,2]
[313302674,1707127842423,-500.0,0.00041095,2]
[313302675,1707127842433,-500.0,0.00041095,2]
[313302676,1707127842442,-202.97851282,0.00041095,2]
[313302677,1707127842452,-500.0,0.00041095,2]
[313302678,1707127842461,-500.0,0.00041095,2]
[313302679,1707127842471,-569.71,0.00041095,2]
[313302680,1707127842480,-500.0,0.00041095,2]
[313302681,1707127842490,-500.0,0.00041095,2]
[313302682,1707127842500,-500.0,0.00041095,2]
[313302683,1707127842513,-500.0,0.00041095,2]
[313302684,1707127842523,-500.0,0.00041095,2]
[313302685,1707127842532,-570.4255596,0.00041095,2]
[313302686,1707127842542,-641.53961883,0.00041095,2]
[313302687,1707127842552,-500.0,0.00041095,2]
[313302688,1707127842561,-500.0,0.00041095,2]
[313302689,1707127842571,-500.0,0.00041095,2]